bitfinex-derivatives/quotes_SOLF0:USTF0_20250709
["timestamp","ask_amount","ask_price","bid_price","bid_amount"]
[1752057661796,2.40335185,153.11,153.08,2.40335185]
[1752057662507,2.40335185,153.1,153.09,6.5313]
[1752057663906,8.93425185,153.1,153.02,4.3361]
[1752057664206,2.40335185,153.09,153.06,2.40335185]
[1752057664404,2.40335185,153.09,153.08,6.5317]
[1752057664603,2.40335185,153.09,153.04,143.7753774]
[1752057664807,2.40335185,153.09,153.05,2.40335185]
[1752057665004,8.93475185,153.09,153.06,6.5322]
[1752057665306,8.93475185,153.09,153.05,2.40335185]
[1752057665506,193.0721,153.14,153.05,2.40335185]
[1752057665701,8.93445185,153.1,153.06,2.40335185]
[1752057666109,8.93445185,153.1,153.07,6.5319]
[1752057667809,6.5311,153.1,153.07,6.5319]
[1752057668107,8.93445185,153.1,153.07,6.5319]
[1752057668910,6.5313,153.09,153.07,6.5319]
[1752057669209,2.40335185,153.08,153.06,6.5324]
[1752057669908,2.40335185,153.08,153.02,4.3361]
[1752057669909,2.40335185,153.07,153.02,2.1569]
[1752057670109,2.40335185,153.06,153.02,4.56025185]
[1752057670304,8.93595185,153.06,153.02,2.1569]
[1752057670506,8.93595185,153.06,153.03,6.5336]
[1752057670909,8.93595185,153.06,153.02,4.56025185]
[1752057671908,8.93595185,153.06,153.04,6.5332]
[1752057672811,6.5326,153.06,153.04,6.5332]
[1752057673110,10.28748309,153.07,153.04,6.5332]
[1752057673912,10.28748309,153.07,153.05,6.5329]
[1752057674811,3.75518309,153.07,153.05,6.5329]
[1752057678114,6.5319,153.08,153.06,6.5325]
[1752057680216,6.5319,153.08,153.05,6.5328]
[1752057682216,6.5319,153.08,153.06,6.5325]
[1752057684519,6.5321,153.07,153.05,6.5328]
[1752057685115,10.28728309,153.07,153.05,6.5328]
[1752057685319,6.5326,153.06,153.04,6.5333]
[1752057687616,3.75518309,153.07,153.03,6.5336]
[1752057688310,6.5331,153.05,153.03,6.5336]
[1752057689218,6.5328,153.06,153.04,6.5334]
[1752057690218,6.533,153.05,153.03,6.5337]
[1752057690719,9.16260549,153.11,153.03,6.5337]
[1752057690919,6.5328,153.06,153.03,6.5337]
[1752057694222,6.5328,153.06,153.04,6.5334]
[1752057694916,2.40336707,153.05,153.04,6.5334]
[1752057695223,8.93646707,153.05,153.03,6.5335]
[1752057695623,2.40336707,153.04,153.03,6.5335]
[1752057697424,6.5331,153.05,153.03,6.5335]
[1752057697624,2.40336707,153.04,153.03,6.5335]
[1752057699125,2.40336707,153.05,153.04,6.5334]
[1752057700516,6.5328,153.06,153.04,6.5334]
[1752057700920,2.40336707,153.05,153.04,6.5334]
[1752057701625,6.5328,153.06,153.04,6.5334]
[1752057701923,2.40336707,153.05,153.04,6.5334]
[1752057702525,6.5328,153.06,153.04,6.5334]
[1752057702717,2.40336707,153.05,153.04,6.5334]
[1752057706529,6.5326,153.06,153.04,6.5334]
[1752057706730,2.40336707,153.05,153.04,6.5334]
[1752057709534,8.93576707,153.07,153.03,2.40336707]
[1752057709732,4.60577565,153.06,153.03,2.40336707]
[1752057709931,8.93576707,153.07,153.03,2.40336707]
[1752057710230,4.60577565,153.06,153.05,6.5326]
[1752057710834,2.40336707,153.07,153.05,6.5326]
[1752057711135,2.40336707,153.07,153.06,6.5326]
[1752057712133,11.18616068,153.07,153.06,6.5326]
[1752057712534,11.18616068,153.07,153.05,6.5328]
[1752057712733,2.40336707,153.07,153.05,6.5328]
[1752057712929,9.16260549,153.12,153.05,2.40336707]
[1752057713135,2.40336707,153.09,153.05,2.40336707]
[1752057713335,8.78203946,153.08,153.05,2.40336707]
[1752057713633,2.40336707,153.06,153.05,6.5328]
[1752057714535,6.5322,153.07,153.05,6.5328]
[1752057714738,2.40336707,153.06,153.05,6.5328]
[1752057716137,8.93596707,153.06,153.04,6.5826619]
[1752057716337,2.40336707,153.06,153.04,6.5826619]
[1752057716631,0.04293144,153.07,153.04,0.0493619]
[1752057716837,2.40336707,153.06,153.04,0.0493619]
[1752057717536,2.40336707,153.06,153.05,6.5329]
[1752057717737,6.57533144,153.07,153.05,6.5329]
[1752057717937,2.40336707,153.06,153.05,6.5329]
[1752057718435,2.44629851,153.07,153.05,6.5329]
[1752057719336,8.97849851,153.07,153.05,6.5329]
[1752057720841,8.93596707,153.06,153.04,6.5825619]
[1752057721039,2.40336707,153.05,153.04,6.5825619]
[1752057722644,6.57533144,153.07,153.05,6.533]
[1752057722942,2.40336707,153.06,153.04,0.0493619]
[1752057723540,8.93596707,153.06,153.04,6.5824619]
[1752057723845,2.40336707,153.06,153.04,0.0493619]
[1752057724544,2.40336707,153.06,153.05,6.533]
[1752057725643,6.57533144,153.07,153.05,6.533]
[1752057725943,2.40336707,153.06,153.05,6.533]
[1752057726142,0.04293144,153.07,153.06,6.5326]
[1752057726337,2.44629851,153.07,153.06,6.5326]
[1752057726533,2.44629851,153.07,153.04,0.0493619]
[1752057726534,19.4952964,153.07,153.04,0.0493619]
[1752057726845,2.40336707,153.05,153.04,0.0493619]
[1752057727543,2.40336707,153.05,153.04,6.5824619]
[1752057727739,8.93616707,153.06,153.04,6.5824619]
[1752057728245,0.04293144,153.07,153.05,6.5326]
[1752057728444,2.44629851,153.07,153.05,6.5326]
[1752057728639,2.44629851,153.07,153.04,0.0493619]
[1752057728944,2.44629851,153.07,153.06,6.5326]
[1752057729136,11.22279504,153.07,153.06,6.5326]
[1752057729446,11.22292271,153.07,153.06,6.5326]
[1752057729745,2.44629851,153.07,153.06,6.5326]
[1752057730446,0.04293144,153.07,153.06,6.5326]
[1752057733950,2.44546704,153.07,153.06,6.5326]
[1752057735044,0.04293144,153.07,153.06,6.5326]
[1752057735241,2.44546704,153.07,153.06,6.5326]
[1752057737246,2.44546704,153.07,153.05,6.5328]
[1752057737442,2.44546704,153.07,153.04,0.0493619]
[1752057737649,2.4025356,153.05,153.04,0.0493619]
[1752057738549,2.4025356,153.05,153.04,6.5828619]
[1752057739640,2.4025356,153.05,153.04,0.0493619]
[1752057739842,8.9356356,153.05,153.04,0.0493619]
[1752057740948,10.28945366,153.05,153.04,0.0493619]
[1752057741453,3.75635366,153.05,153.04,0.0493619]
[1752057742649,8.2396989,153.05,153.04,0.0493619]
[1752057743150,8.2396989,153.05,153.04,6.5828619]
[1752057744847,4.48334524,153.05,153.04,6.5828619]
[1752057745954,0.04293144,153.07,153.06,6.5326]
[1752057746348,4.52625569,153.07,153.06,6.5326]
[1752057748153,0.04293144,153.07,153.06,6.5326]
[1752057751847,3.7992851,153.07,153.05,6.5329]
[1752057752047,4.49305754,153.06,153.05,6.5329]
[1752057753553,4.49305754,153.06,153.04,0.0493619]
[1752057753554,3.7992851,153.07,153.06,6.5326]
[1752057753752,8.29271799,153.07,153.06,6.5326]
[1752057757361,4.53636433,153.07,153.06,6.5326]
[1752057760552,0.04293144,153.07,153.06,6.5326]
[1752057766266,10.28685366,153.11,153.08,6.5314]
[1752057766566,4.49128257,153.1,153.08,6.5314]
[1752057766766,4.49128257,153.09,153.08,6.5314]
[1752057767865,10.28695366,153.11,153.08,6.5314]
[1752057768163,4.50049343,153.1,153.09,6.5313]
[1752057768770,6.90252437,153.1,153.09,6.5313]
[1752057770762,6.90252437,153.1,153.08,6.5315]
[1752057771067,2.40203094,153.09,153.08,6.5315]
[1752057772871,6.5306,153.11,153.09,6.5313]
[1752057773171,6.84453504,153.1,153.09,6.5313]
[1752057773874,4.4425041,153.1,153.09,6.5313]
[1752057774073,6.84453504,153.1,153.09,6.5313]
[1752057776575,6.84379496,153.1,153.09,6.5313]
[1752057777673,4.44176402,153.1,153.09,6.5313]
[1752057777973,6.84379496,153.1,153.09,6.5313]
[1752057778371,4.44176402,153.1,153.09,6.5313]
[1752057778572,6.84379496,153.1,153.09,6.5313]
[1752057779677,2.40203094,153.1,153.09,6.5313]
[1752057781073,2.40203094,153.11,153.1,6.5308]
[1752057781276,6.84238056,153.11,153.1,6.5308]
[1752057781668,4.44034962,153.11,153.1,6.5308]
[1752057781871,2.40203094,153.12,153.11,6.5304]
[1752057782073,6.84192926,153.12,153.11,6.5304]
[1752057782475,4.43989832,153.12,153.11,6.5304]
[1752057782873,6.529,153.15,153.12,6.5298]
[1752057783073,17.36228559,153.14,153.12,6.5298]
[1752057783278,6.84083032,153.13,153.12,6.5298]
[1752057784071,4.43879938,153.13,153.12,6.5298]
[1752057784269,6.84083032,153.13,153.12,6.5298]
[1752057784580,6.84083032,153.13,153.11,6.57275712]
[1752057784782,2.2937,153.17,153.11,6.57275712]
[1752057785081,2.40203094,153.12,153.11,6.57275712]
[1752057785379,6.5294,153.14,153.11,6.57275712]
[1752057785577,2.40203094,153.13,153.11,6.57275712]
[1752057790583,8.93173094,153.13,153.11,6.57275712]
[1752057792885,6.5297,153.13,153.11,6.57275712]
[1752057793181,8.93173094,153.13,153.11,6.57275712]
[1752057797880,2.40203094,153.13,153.12,6.5301]
[1752057800686,6.579104,153.14,153.12,6.5301]
[1752057800888,8.93173094,153.13,153.11,6.57265712]
[1752057803293,8.93173094,153.13,153.12,6.5301]
[1752057803984,6.5297,153.13,153.12,6.5301]
[1752057804191,8.93173094,153.13,153.12,6.5301]
[1752057804690,2.40203094,153.13,153.11,0.04235712]
[1752057805389,8.93183094,153.13,153.11,6.57265712]
[1752057807192,2.40203094,153.12,153.11,6.57265712]
[1752057807992,6.5298,153.13,153.11,6.57265712]
[1752057808190,2.40203094,153.12,153.11,6.57265712]
[1752057810395,19.87023412,153.12,153.04,4.5652]
[1752057810597,2.40203094,153.06,153.02,2.40203094]
[1752057810994,2.40203094,153.06,153.03,2.40203094]
[1752057811192,2.40203094,153.06,153.03,141.17159801]
[1752057811809,6.532,153.08,153.03,141.21415534]
[1752057812210,2.40203094,153.07,153.03,141.21415534]
[1752057812710,2.40203094,153.07,153.06,6.5326]
[1752057815407,4.4726,153.12,153.06,6.5326]
[1752057815611,2.40203094,153.07,153.06,6.5326]
[1752057816910,6.5321,153.08,153.06,6.5326]
[1752057817103,2.40203094,153.07,153.06,6.5326]
[1752057820120,6.57894591,153.08,153.06,6.5326]
[1752057820315,2.40203094,153.07,153.06,6.5326]
[1752057820921,6.57894591,153.08,153.06,6.5326]
[1752057821119,2.40203094,153.07,153.06,6.5326]
[1752057825722,0.04684591,153.08,153.06,6.5326]
[1752057825926,2.40203094,153.07,153.06,6.5326]
[1752057829831,0.04684591,153.08,153.07,6.5322]
[1752057830124,2.44887685,153.08,153.07,6.5322]
[1752057830526,2.44887685,153.08,153.06,6.5324]
[1752057830725,2.40203094,153.07,153.06,6.5324]
[1752057842835,2.44887685,153.08,153.06,6.5324]
[1752057843630,2.40203094,153.07,153.06,6.5324]
[1752057846331,0.04684591,153.08,153.07,6.5322]
[1752057846532,2.44887685,153.08,153.07,6.5322]
[1752057848338,6.890227,153.08,153.07,6.5322]
[1752057850437,9.16260549,153.17,153.05,0.0443552]
[1752057850634,12.97493307,153.16,153.09,2.40201786]
[1752057850834,2.40097766,153.13,153.09,2.40097766]
[1752057851432,2.40097766,153.12,153.08,2.40097766]
[1752057851633,2.40097766,153.12,153.11,6.5303]
[1752057868566,8.93107766,153.12,153.1,6.5308]
[1752057868759,2.40097766,153.11,153.1,6.5308]
[1752057869860,8.93147766,153.11,153.09,6.57845188]
[1752057870058,2.40097766,153.1,153.09,6.57845188]
[1752057874065,6.5305,153.11,153.09,6.57845188]
[1752057874263,2.40097766,153.1,153.09,6.57845188]
[1752057876466,8.93147766,153.11,153.09,6.57845188]
[1752057880365,2.40097766,153.11,153.1,6.5309]
[1752057882269,6.5303,153.12,153.1,6.5309]
[1752057882470,2.40097766,153.11,153.1,6.5309]
[1752057883573,6.5303,153.12,153.1,6.5309]
[1752057883775,2.40097766,153.11,153.1,6.5309]
[1752057885172,6.5303,153.12,153.1,6.5309]
[1752057885374,2.40097766,153.12,153.11,6.5305]
[1752057885574,6.69017977,153.12,153.11,6.5305]
[1752057886373,15.08024305,153.12,153.11,6.5305]
[1752057886776,12.67926538,153.12,153.11,6.5305]
[1752057886975,4.28920211,153.12,153.11,6.5305]
[1752057888778,6.69017977,153.12,153.11,6.5305]
[1752057889474,2.40097766,153.12,153.11,6.5305]
[1752057890379,6.69749811,153.12,153.11,6.5305]
[1752057891582,2.40097766,153.12,153.11,6.5305]
[1752057892276,6.65895483,153.12,153.11,6.5305]
[1752057892481,2.40097766,153.12,153.11,6.5305]
[1752057892782,8.93107766,153.12,153.1,6.5307]
[1752057892982,2.40097766,153.11,153.1,6.5307]
[1752057893478,8.93147766,153.11,153.09,6.57845188]
[1752057893678,2.40097766,153.1,153.09,0.04725188]
[1752057894380,2.40097766,153.1,153.09,6.57855188]
[1752057896485,2.40097766,153.1,153.09,0.04725188]
[1752057897881,2.40097766,153.1,153.09,6.57855188]
[1752057900283,8.93187766,153.1,153.09,0.04725188]
[1752057900483,19.56279032,153.1,153.02,2.40097766]
[1752057900687,2.40097766,153.07,153.02,2.40097766]
[1752057901284,2.40097766,153.07,153.03,141.17054473]
[1752057901785,8.93317766,153.07,153.05,6.5328]
[1752057901985,2.40097766,153.06,153.05,6.5328]
[1752057902285,7.47506615,153.06,153.05,6.5328]
[1752057902485,2.40097766,153.06,153.05,6.5328]
[1752057912094,2.40097766,153.06,153.03,138.76956707]
[1752057912392,2.40097766,153.05,153.03,138.76956707]
[1752057912688,2.40097766,153.05,153.04,6.5335]
[1752057912895,2.40097766,153.05,153.03,138.76956707]
[1752057913093,2.40097766,153.04,153.03,138.76956707]
[1752057913493,2.40097766,153.04,153.03,145.30346707]
[1752057915686,9.15633806,153.1,153.0,2.40097766]
[1752057915887,2.40097766,153.05,153.02,2.40097766]
[1752057916091,2.40097766,153.05,153.03,6.5336]
[1752057916291,8.93397766,153.06,153.02,2.40097766]
[1752057916493,2.40097766,153.07,153.04,2.40097766]
[1752057916693,2.40097766,153.07,153.05,6.5328]
[1752057917995,8.93327766,153.07,153.05,6.5328]
[1752057918194,9.29296892,153.06,153.05,6.5328]
[1752057918497,4.9424897,153.06,153.05,6.5328]
[1752057918697,8.93327766,153.07,153.05,6.5328]
[1752057919700,2.40097766,153.06,153.05,6.5328]
[1752057920700,2.40097766,153.06,153.0,2.40097766]
[1752057920896,2.40097766,153.04,153.0,2.40097766]
[1752057921096,2.40097766,153.03,153.0,2.40097766]
[1752057921694,2.40097766,153.03,153.02,6.5343]
[1752057923601,2.2113,153.08,152.98,144.01562114]
[1752057923801,2.40097766,153.02,152.99,2.40097766]
[1752057923992,2.2113,153.08,153.04,6.5332]
[1752057924197,2.40097766,153.05,153.04,6.5332]
[1752057925800,8.93397766,153.05,153.03,6.5337]
[1752057925999,2.40097766,153.04,153.03,6.5337]
[1752057927103,10.28856594,153.06,153.03,6.5337]
[1752057927304,6.5332,153.05,153.03,6.5337]
[1752057929607,10.28856594,153.06,153.03,6.5337]
[1752057930108,10.28856594,153.06,153.04,6.5334]
[1752057930309,6.5324,153.07,153.0,3.75576594]
[1752057931008,6.5324,153.07,153.05,6.5327]
[1752057931403,10.28776594,153.08,153.0,3.75576594]
[1752057931807,6.532,153.08,153.06,6.5324]
[1752057934112,10.28736594,153.09,153.06,6.5324]
[1752057934310,9.28374689,153.08,153.06,6.5324]
[1752057934505,10.28736594,153.09,153.06,6.5324]
[1752057934707,9.28374689,153.08,153.06,6.5324]
[1752057934912,10.28736594,153.09,153.07,6.5322]
[1752057935110,9.28374689,153.08,153.07,6.5322]
[1752057935506,15.81554689,153.08,153.02,3.75576594]
[1752057935707,6.5318,153.08,153.02,3.75576594]
[1752057936512,6.5318,153.08,153.06,6.5324]
[1752057937812,4.95184043,153.07,153.06,6.5324]
[1752057938211,9.3266459,153.07,153.06,6.5324]
[1752057939412,4.95184043,153.07,153.06,6.5324]
[1752057940220,9.33785005,153.07,153.06,6.5324]
[1752057941018,10.28756594,153.08,153.06,6.5324]
[1752057941215,4.95899857,153.07,153.06,6.5324]
[1752057942816,4.95899857,153.07,153.05,6.5328]
[1752057943118,10.28756594,153.08,153.01,5.92866594]
[1752057943311,4.97210733,153.07,153.01,5.92866594]
[1752057943513,10.28756594,153.08,153.05,6.5326]
[1752057943719,4.97210733,153.07,153.05,6.5326]
[1752057943914,10.28756594,153.08,153.05,6.5326]
[1752057944112,4.97210733,153.07,153.05,6.5326]
[1752057944310,10.28756594,153.08,153.05,6.5326]
[1752057944517,4.97201754,153.07,153.06,6.5326]
[1752057946521,11.50421754,153.07,153.05,6.5329]
[1752057946720,6.5322,153.07,153.05,6.5329]
[1752057947225,4.96106818,153.06,153.05,6.5329]
[1752057948823,7.36427699,153.06,153.05,6.5329]
[1752057954729,13.89697699,153.06,153.04,6.57513159]
[1752057954929,2.40320881,153.05,153.04,6.57513159]
[1752057956325,7.34247608,153.05,153.04,6.57513159]
[1752057959932,4.93926727,153.05,153.04,6.57513159]
[1752057960229,7.34247608,153.05,153.04,6.57513159]
[1752057960535,7.34247483,153.05,153.04,6.57513159]
[1752057960730,2.40320881,153.05,153.04,6.57513159]
[1752057964936,0.04577509,153.06,153.04,6.57513159]
[1752057964937,0.04577509,153.06,153.05,6.533]
[1752057965135,7.37692194,153.06,153.05,6.533]
[1752057967137,7.37752245,153.06,153.05,6.533]
[1752057969940,4.97431364,153.06,153.05,6.533]
[1752057970134,11.67478398,153.06,153.05,6.533]
[1752057972846,11.67478398,153.06,153.04,0.04183159]
[1752057973142,2.40320881,153.05,153.04,0.04183159]
[1752057973549,15.66784787,153.05,153.04,0.04183159]
[1752057974142,19.96629844,153.05,153.04,0.04183159]
[1752057974644,26.49919844,153.05,153.04,0.04183159]
[1752057976443,26.49919844,153.05,153.03,6.5335]
[1752057976642,11.65021215,153.04,153.03,6.5335]
[1752057978151,7.35176158,153.04,153.03,6.5335]
[1752057983252,13.88516158,153.04,153.02,6.5338]
[1752057983453,2.40320881,153.03,153.02,6.5338]
[1752057983653,7.3133157,153.03,152.99,140.38393418]
[1752057983849,6.5341,153.03,153.0,6.535]
[1752057984050,4.91039115,153.02,153.0,6.535]
[1752057984347,6.5343,153.02,153.0,6.535]
[1752057985048,2.40320881,153.01,153.0,6.535]
[1752057988051,2.40320881,153.04,153.0,2.40320881]
[1752057988255,2.40320881,153.04,153.01,2.40320881]
[1752057988954,2.40320881,153.04,153.03,6.5338]
[1752057989153,7.2985459,153.04,153.03,6.5338]
[1752057991154,2.40320881,153.04,153.03,6.5338]
[1752057991853,2.44998547,153.05,153.04,6.5334]
[1752057992054,4.96524506,153.05,153.04,6.5334]
[1752057996858,0.04677666,153.05,153.04,6.5334]
[1752057997058,4.98849825,153.05,153.04,6.5334]
[1752057997355,2.44998547,153.05,153.04,6.5334]
[1752057997561,7.39185058,153.05,153.04,6.5334]
[1752057997756,4.98864177,153.05,153.04,6.5334]
[1752057999260,0.04677666,153.05,153.04,6.5334]
[1752058000261,0.04677666,153.05,153.04,8.93660881]
[1752058001356,2.40320881,153.09,153.08,6.5313]
[1752058001557,19.92980574,153.09,153.06,2.40320881]
[1752058001758,9.22561909,153.08,153.05,2.40320881]
[1752058001957,2.40320881,153.09,153.05,2.40320881]
[1752058003062,2.40320881,153.09,153.08,6.5317]
[1752058003256,7.27606421,153.09,153.08,6.5317]
[1752058003959,15.59163376,153.09,153.08,6.5317]
[1752058004161,8.31556955,153.09,153.08,6.5317]
[1752058004360,2.40320881,153.1,153.09,6.5312]
[1752058004561,10.71697001,153.1,153.09,6.5312]
[1752058005363,2.40320881,153.1,153.09,6.5312]
[1752058010059,0.05011148,153.11,153.08,0.04978249]
[1752058010464,2.40320881,153.09,153.08,0.04978249]
[1752058011164,2.40320881,153.09,153.08,6.58148249]
[1752058016362,6.58071148,153.11,153.09,6.5311]
[1752058016567,2.40320881,153.1,153.09,6.5311]
[1752058022063,2.45332029,153.11,153.1,6.5308]
[1752058036173,2.45332029,153.11,153.09,6.531]
[1752058036374,8.98362029,153.11,153.09,6.531]
[1752058036669,6.58041148,153.11,153.09,6.531]
[1752058036870,8.98362029,153.11,153.09,6.531]
[1752058040278,2.45332029,153.11,153.08,0.04978249]
[1752058040477,6.5309,153.1,153.08,6.58118249]
[1752058043478,6.5312,153.09,153.08,0.04978249]
[1752058043679,2.40320881,153.09,153.08,0.04978249]
[1752058044080,6.79635859,153.09,153.08,0.04978249]
[1752058046186,11.59734668,153.09,153.08,0.04978249]
[1752058049892,18.12854668,153.09,153.08,0.04978249]
[1752058052389,11.59734668,153.09,153.08,6.58138249]
[1752058052995,7.2041969,153.09,153.08,6.58138249]
[1752058053190,11.59565843,153.09,153.08,6.58138249]
[1752058056797,9.19244962,153.09,153.08,8.9845913]
[1752058056988,0.05011148,153.11,153.09,6.5311]
[1752058057195,9.16968209,153.1,153.09,6.5311]
[1752058057595,11.5728909,153.1,153.09,6.5311]
[1752058057896,6.5312,153.09,153.08,0.04978249]
[1752058058193,26.51063344,153.09,153.08,0.04978249]
[1752058058802,26.51163016,153.09,153.08,0.04978249]
[1752058060296,11.57388762,153.09,153.08,0.04978249]
[1752058060599,2.40320881,153.1,153.08,0.04978249]
[1752058061199,2.40320881,153.1,153.08,6.58118249]
[1752058061799,8.93400881,153.1,153.08,6.58118249]
[1752058062998,2.40320881,153.09,153.08,6.58118249]
[1752058065507,11.56006389,153.09,153.08,6.58118249]
[1752058067508,18.09126389,153.09,153.08,0.04978249]
[1752058070406,26.49644021,153.09,153.08,0.04978249]
[1752058070712,19.96524021,153.09,153.08,0.04978249]
[1752058073113,11.56006389,153.09,153.08,6.58138249]
[1752058077115,19.96453368,153.09,153.08,6.58138249]
[1752058078312,17.56132487,153.09,153.08,6.58138249]
[1752058078517,19.96453368,153.09,153.08,6.58138249]
[1752058080313,6.79404082,153.09,153.08,6.58138249]
[1752058080515,11.55996699,153.09,153.08,6.58138249]
[1752058081214,2.40320881,153.09,153.08,6.58138249]
[1752058084816,6.58061148,153.11,153.08,6.58138249]
[1752058085011,2.40320881,153.09,153.08,6.58138249]
[1752058086515,6.58061148,153.11,153.08,6.58138249]
[1752058086814,2.40320881,153.09,153.08,6.58138249]
[1752058087718,10.78587185,153.09,153.08,6.58138249]
[1752058088813,2.40320881,153.09,153.08,6.58138249]
[1752058091715,10.78663511,153.09,153.02,2.302]
[1752058091909,2.40320881,153.05,153.02,4.70520881]
[1752058092109,2.40320881,153.07,153.03,2.40320881]
[1752058092712,2.3241,153.1,153.04,2.40320881]
[1752058092916,2.45345884,153.07,153.06,6.5321]
[1752058093115,10.84474759,153.07,153.06,6.5321]
[1752058094320,2.45345884,153.07,153.06,6.5321]
[1752058096016,7.29524838,153.07,153.06,6.5321]
[1752058099828,2.45345884,153.07,153.06,6.5321]
[1752058104425,6.85480251,153.07,153.06,6.5321]
[1752058104825,6.85480251,153.07,153.05,6.5327]
[1752058105026,2.40320881,153.06,153.05,6.5327]
[1752058105632,6.80467722,153.06,153.05,6.5327]
[1752058107031,6.80467722,153.06,153.04,6.5331]
[1752058107228,2.40320881,153.05,153.04,6.5331]
[1752058107732,6.80453501,153.05,153.04,6.5331]
[1752058108230,11.62309559,153.05,153.04,6.5331]
[1752058108427,11.62309559,153.05,153.03,6.5336]
[1752058108627,2.40320881,153.04,153.03,6.5336]
[1752058124852,6.5326,153.06,153.04,6.5332]
[1752058125052,2.40320881,153.05,153.04,6.5332]
[1752058130154,6.78907607,153.05,153.04,6.5332]
[1752058130453,4.38586726,153.05,153.04,6.5332]
[1752058130753,2.45345884,153.07,153.06,6.5325]
[1752058130956,11.70619213,153.07,153.06,6.5325]
[1752058131155,2.45345884,153.07,153.06,6.5325]
[1752058133947,2.45345884,153.07,153.05,6.5327]
[1752058134147,2.40320881,153.06,153.03,2.40320881]
[1752058134347,2.45345884,153.07,153.04,2.40320881]
[1752058135552,2.45345884,153.07,153.06,6.5325]
[1752058138957,0.05025003,153.07,153.06,6.5325]
[1752058139154,2.45345884,153.07,153.06,6.5325]
[1752058141358,0.05025003,153.07,153.06,6.5325]
[1752058142660,2.45345884,153.07,153.06,6.5325]
[1752058147161,0.05025003,153.07,153.06,6.5325]
[1752058147458,2.45345884,153.07,153.06,6.5325]
[1752058150059,2.45345884,153.07,153.05,6.5327]
[1752058150659,2.45345884,153.07,153.06,6.5325]
[1752058151161,2.45345884,153.07,153.05,6.5326]
[1752058151459,2.40320881,153.06,153.05,6.5326]
[1752058153960,0.05025003,153.07,153.06,6.5325]
[1752058154256,2.45345884,153.07,153.06,6.5325]
[1752058155054,0.05025003,153.07,153.06,6.5325]
[1752058155255,2.45345884,153.07,153.06,6.5325]
[1752058155864,2.45345884,153.07,153.03,2.40320881]
[1752058155865,2.45345884,153.07,153.05,6.5327]
[1752058156162,2.40320881,153.06,153.05,6.5327]
[1752058156567,0.05025003,153.07,153.06,6.5325]
[1752058156763,2.45345884,153.07,153.06,6.5325]
[1752058157863,2.45345884,153.07,153.05,6.5327]
[1752058159367,2.45345884,153.07,153.06,6.5325]
[1752058171577,0.05025003,153.07,153.06,6.5325]
[1752058171877,2.45345884,153.07,153.06,6.5325]
[1752058175281,7.26343183,153.07,153.06,6.5325]
[1752058176281,7.2640674,153.07,153.06,6.5325]
[1752058180087,7.2640674,153.07,153.05,6.5327]
[1752058180288,2.40320881,153.06,153.05,6.5327]
[1752058186297,19.96089629,153.06,152.99,2.1493]
[1752058186495,2.40423463,153.02,152.99,2.1493]
[1752058187095,2.44780233,153.02,152.99,2.1493]
[1752058187392,2.44780233,153.02,153.01,6.5346]
[1752058192598,0.0435677,153.02,153.01,6.5346]
[1752058192802,2.2766,153.1,153.04,6.5329]
[1752058193103,2.2766,153.1,153.02,2.40423463]
[1752058193104,2.40423463,153.06,153.02,2.40423463]
[1752058193306,9.16481147,153.11,153.04,2.40423463]
[1752058193501,2.40423463,153.09,153.05,2.40423463]
[1752058193697,6.90843674,153.08,153.04,2.40423463]
[1752058193897,6.90773428,153.07,153.06,6.5321]
[1752058194102,6.90773428,153.07,153.01,2.40423463]
[1752058194297,11.48281147,153.12,153.04,2.40423463]
[1752058194501,2.40423463,153.09,153.06,2.40423463]
[1752058194906,2.40423463,153.09,153.05,2.40423463]
[1752058195106,2.40423463,153.09,153.07,6.5317]
[1752058195306,2.40423463,153.09,153.05,2.40423463]
[1752058195503,2.40423463,153.09,153.08,6.5316]
[1752058195810,6.90726562,153.09,153.08,6.5316]
[1752058196205,2.40423463,153.09,153.08,6.5316]
[1752058197708,6.5303,153.11,153.08,6.5316]
[1752058197907,2.40423463,153.09,153.08,6.5316]
[1752058203517,6.5304,153.11,153.08,6.5316]
[1752058203715,2.40423463,153.09,153.08,6.5316]
[1752058208922,2.40423463,153.1,153.09,6.5312]
[1752058212317,2.40423463,153.11,153.1,6.5308]
[1752058212523,2.45290898,153.11,153.1,6.5308]
[1752058212720,2.45290898,153.11,153.08,0.04532567]
[1752058212918,2.45290898,153.11,153.09,6.531]
[1752058214120,2.45290898,153.11,153.1,6.5308]
[1752058222233,2.45290898,153.11,153.09,6.531]
[1752058222532,2.40423463,153.1,153.09,6.531]
[1752058230040,2.45290898,153.11,153.1,6.5308]